Cogmind - Beta 13 @@@ ROGUE MODE // 2024.04.01 @ 22:02:50 Player: Crescent Star Result: Destroyed by G-47 Trooper with Particle Gun Performance ------------- Evolutions (2) 1000 Regions Visited (3) 600 Robots Destroyed (11) 55 Value Destroyed (322) 322 Prototype IDs (0) 0 Alien Tech Used (0) 0 Bonus (0) 0 TOTAL SCORE: 1977 Bonus ------- None Cogmind --------- Core Integrity 0/550 Matter 197/300 Energy 100/100 System Corruption 0% Temperature Cool (9) Movement Core (200) Ox3 Location -8/Materials Parts ------- > --- POWER (3) -------- (None) > --- PROPULSION (3) --- (None) > --- UTILITY (3) ------ Medium Storage Unit Improved Signal Interpreter > --- WEAPON (2) ------- (None) > --- INVENTORY (10) --- Compact Battery (200) Peak State ------------ > --- POWER ------------ (None) > --- PROPULSION ------- Light Treads Aluminum Leg VSS Leg > --- UTILITY ---------- Heat Sink Medium Storage Unit Compact Battery > --- WEAPON ----------- Beam Rifle Heavy Assault Rifle > --- INVENTORY -------- (None) [Rating: 14] Favorites ----------- Power Light Ion Engine Engine Light Ion Engine Propulsion Wheel Treads Light Treads Leg Aluminum Leg Wheel Wheel Hover Unit Improved Hover Unit Flight Unit Flight Unit Utility Heat Sink Device Heat Sink Storage Medium Storage Unit Processor Improved Signal Interpreter Protection Light Armor Plating Weapon Beam Rifle Energy Gun Beam Rifle Ballistic Gun Assault Rifle Launcher Rocket Launcher Build | -11 -10 -9 -8 ------- Run | Yrd Mat Mat Mat Slots Evolved 4 | . . 2 2 Power 2 | . . . 2 Propulsion 1 | . . 1 . Utility 1 | . . 1 . Weapon . | . . . . Parts Attached 27 | 6 1 11 9 Power 2 | 1 . 1 . Engine 2 | 1 . 1 . Core . | . . . . Reactor . | . . . . Propulsion 10 | 2 1 4 3 Treads 1 | . . . 1 Leg 3 | . . 1 2 Wheel 3 | 2 . 1 . Hover 1 | . . 1 . Flight 2 | . 1 1 . Utility 8 | . . 3 5 Device 3 | . . 2 1 Storage 2 | . . . 2 Processor 1 | . . . 1 Hackware . | . . . . Protection 2 | . . 1 1 Artifact . | . . . . Weapon 7 | 3 . 3 1 Energy Gun 3 | 1 . 2 . Energy Cannon . | . . . . Ballistic Gun 3 | 2 . . 1 Ballistic Cannon . | . . . . Launcher 1 | . . 1 . Special Weapon . | . . . . Impact Weapon . | . . . . Slashing Weapon . | . . . . Piercing Weapon . | . . . . Special Melee Weapon . | . . . . Unidentified Prototypes . | . . . . Parts Lost 14 | . 4 4 6 Power 2 | . 1 . 1 Propulsion 6 | . 1 3 2 Utility 2 | . . 1 1 Weapon 4 | . 2 . 2 Highest Loss Streak 5 | . 4 2 5 To Critical Strikes . | . . . . Average Slot Usage (%) 59 | . 61 60 57 Engine 7 | . 12 8 4 Treads 1 | . . . 3 Leg 6 | . . 4 11 Wheel 5 | . 23 4 . Hover 1 | . . 2 . Device 11 | . . 17 6 Storage 5 | . . . 15 Protection 2 | . . 3 2 Energy Gun 9 | . 10 9 8 Ballistic Gun 2 | . 12 . 3 Launcher 4 | . . 9 . Naked Turns 16 | . . 16 . Heaviest Build 20 | 7 7 16 20 Greatest Support 22 | 20 20 16 22 Greatest Overweight (x) 5 | . . 5 3 Average Overweight (x) . | . . . . Largest Inventory Capacity 10 | 5 5 5 10 Average Capacity 6 | 5 5 5 9 Most Carried 5 | 5 1 1 1 Average Carried . | 1 . . . Final Capacity 10 | 5 5 5 10 Final Carried 1 | . . . 1 Class Distribution -------------------- 87% | Mutant 12% | Scavenger-Mutant Dominant Class ---------------- Mutant | -10/Materials Mutant | -9/Materials Mutant | -8/Materials Resources | -11 -10 -9 -8 ----------- Run | Yrd Mat Mat Mat Matter Collected 458 | 274 . 114 70 Remotely . | . . . . Salvage Created 398 | 61 . 220 117 Parts 23 | 2 . 15 6 Haulers Intercepted . | . . . . Recyclers Shooed . | . . . . Parts Field Recycled . | . . . . Retrieved Matter . | . . . . Parts Self-Destructed . | . . . . Prevented . | . . . . Kills | -11 -10 -9 -8 ------- Run | Yrd Mat Mat Mat Combat Hostiles Destroyed 7 | 1 . 4 2 Guns 5 | 1 . 2 2 AOE 2 | . . 2 . Classes Destroyed 6 | 2 . 4 . Worker 1 | 1 . . . Builder 1 | . . 1 . Recycler 1 | . . 1 . Watcher 1 | . . 1 . Grunt 4 | 1 . 2 1 Sentry 3 | . . 2 1 Best Kill Streak 3 | 1 . 3 1 Combat Bots Only 2 | 1 . 2 1 Max Kills in Single Turn 2 | 1 . 2 1 Gunslinging . | . . . . Exploded 1 | . . 1 . Melee . | . . . . Uniques/NPCs Destroyed . | . . . . Combat | -11 -10 -9 -8 -------- Run | Yrd Mat Mat Mat Hostile Shots Fired 183 | 10 61 22 90 Missed 53 | . 21 10 22 Damage Taken 1971 | 112 329 313 1217 Core 773 | . 168 43 562 Absorbed by Shields . | . . . . Core Remaining (%) 73 | 100 32 89 . Volleys Fired 36 | 6 6 10 14 Largest 2 | 2 2 2 2 Hottest 89 | 60 60 89 79 Shots Fired 60 | 10 9 20 21 Gun 50 | 10 9 10 21 Cannon . | . . . . Launcher 10 | . . 10 . Special . | . . . . Kinetic 19 | 6 6 . 7 Thermal 24 | . . 10 14 Explosive 10 | . . 10 . Electromagnetic 7 | 4 3 . . Robot Hit Streak 7 | 4 1 6 7 Robot Miss Streak 3 | 1 3 2 3 Penetration Max . | . . . . Secondary Targets 1 | . . . 1 Max Gunslinging Chain 1 | . . . 1 Shots Hit Robots 34 | 7 1 11 15 Core Hits 21 | 4 . 10 7 Critical Kills . | . . . . Critical Parts Destroyed . | . . . . Critical Strikes . | . . . . Melee Attacks . | . . . . Impact . | . . . . Slashing . | . . . . Piercing . | . . . . Sneak Attacks . | . . . . Combat Hostiles . | . . . . Follow-up Attacks . | . . . . Damage Inflicted 836 | 84 10 477 265 Guns 461 | 84 10 102 265 Cannons . | . . . . Explosions 373 | . . 373 . Melee . | . . . . Ramming 2 | . . 2 . Kinetic 131 | 54 . . 77 Thermal 290 | . . 102 188 Explosive 373 | . . 373 . Electromagnetic 40 | 30 10 . . Impact . | . . . . Slashing . | . . . . Piercing . | . . . . Highest Corruption . | . . . . Average Corruption . | . . . . Corruption Purged . | . . . . Corruption Blocked . | . . . . Overload Shots . | . . . . Overflow Damage 8 | . . 8 . Projectiles . | . . . . Explosions 8 | . . 8 . Melee . | . . . . Knockbacks . | . . . . Impact . | . . . . Kinetic . | . . . . Secondary . | . . . . Self-Inflicted Damage 146 | . . 146 . Shots 5 | . . 5 . Rammed 1 | . . 1 . Targets Rammed 1 | . . 1 . Kicked . | . . . . Crushed . | . . . . Highest Temperature 129 | 18 . 9 129 Average Temperature 35 | 11 . 7 55 Received Heat Transfer 675 | 60 30 63 522 Siege Activations . | . . . . Robots Corrupted . | . . . . Combat Hostiles . | . . . . Parts Fried . | . . . . Impact Corruptions . | . . . . Robots Melted . | . . . . Combat Hostiles . | . . . . Parts Melted 1 | . . . 1 Heat Transferred 740 | . . 259 481 Parts Sabotaged . | . . . . Parts Stolen . | . . . . Parts Stripped . | . . . . Power Chain Reactions . | . . . . Alert | -11 -10 -9 -8 ------- Run | Yrd Mat Mat Mat Peak Influence 209 | 25 16 209 179 Initial 87 | . 16 . 87 Average 96 | 7 11 117 130 Maximum Alert Level 1 | . . 1 . Low Security (%) 87 | 100 100 71 100 Level 1 12 | . . 28 . Level 2 . | . . . . Level 3 . | . . . . Level 4 . | . . . . Level 5 . | . . . . High Security . | . . . . Max Security . | . . . . Squads Dispatched 3 | . . 1 2 Investigation 1 | . . 1 . Extermination . | . . . . Reinforcement 2 | . . . 2 Assault . | . . . . Garrison . | . . . . Intercept . | . . . . Searches Triggered . | . . . . Construction Impeded . | . . . . Haulers Reinforced . | . . . . Active Scanning Responses . | . . . . Cargo Convoy Interrupts . | . . . . Stealth | -11 -10 -9 -8 --------- Run | Yrd Mat Mat Mat Distress Signals 1 | . . . 1 Communications Jammed . | . . . . Distress Signals . | . . . . Times Spotted 26 | 1 5 5 15 Peak Tracking Total 8 | 1 5 2 8 Tactical Retreats 1 | . . . 1 Traps | -11 -10 -9 -8 ------- Run | Yrd Mat Mat Mat Traps Triggered 1 | . . 1 . Indirectly . | . . . . Trap Hack Attempts . | . . . . Triggered . | . . . . Disarmed . | . . . . Reprogrammed . | . . . . Reused . | . . . . Traps Extracted . | . . . . Installed . | . . . . Triggered . | . . . . Machines | -11 -10 -9 -8 ---------- Run | Yrd Mat Mat Mat Machines Disabled 1 | . . 1 . Max in Single Turn 1 | . . 1 . Machines Repaired . | . . . . Machines Dismantled . | . . . . Machines Sabotaged . | . . . . Overloaded Fab Kills . | . . . . Hacking | -11 -10 -9 -8 --------- Run | Yrd Mat Mat Mat Machines Accessed 7 | . . 5 2 Terminals 4 | . . 3 1 Fabricators . | . . . . Repair Stations 1 | . . . 1 Recycling Units 1 | . . 1 . Scanalyzers 1 | . . 1 . Garrison Access . | . . . . Total Hacks 21 | . . 15 6 Successful 12 | . . 9 3 Failed 9 | . . 6 3 Catastrophic . | . . . . Database Lockouts . | . . . . Manual 3 | . . 3 . Terminals 12 | . . 9 3 Fabricators . | . . . . Repair Stations 3 | . . . 3 Recycling Units 5 | . . 5 . Scanalyzers 1 | . . 1 . Garrison Access . | . . . . Terminal Hacks 9 | . . 7 2 Record 8 | . . 6 2 Emergency Access Points 1 | . . 1 . Fabricator Hacks . | . . . . Repair Station Hacks 1 | . . . 1 Scan Component 1 | . . . 1 Recycling Unit Hacks 2 | . . 2 . Process 1 | . . 1 . Report Inventory 1 | . . 1 . Scanalyzer . | . . . . Garrison Access Hacks . | . . . . Unauthorized Hacks . | . . . . Terminals . | . . . . Fabricators . | . . . . Repair Stations . | . . . . Recycling Units . | . . . . Scanalyzers . | . . . . Garrison Access . | . . . . Data Cores Recovered . | . . . . Used . | . . . . Hacking Detections 5 | . . 3 2 Full Trace Events 3 | . . 2 1 Feedback Events . | . . . . Feedback Blocked . | . . . . Robot Schematics Acquired . | . . . . Robots Built . | . . . . Authchips . | . . . . Time . | . . . . Total Robot Build Rating . | . . . . Part Schematics Acquired . | . . . . Parts Built . | . . . . Authchips . | . . . . Time . | . . . . Total Part Build Rating . | . . . . Parts Repaired . | . . . . Time . | . . . . Parts Recycled . | . . . . Recycled Matter 7 | . . 7 . Retrieved Matter . | . . . . Retrieved Components . | . . . . Parts Scanalyzed . | . . . . Part Schematics Acquired . | . . . . Parts Damaged . | . . . . Bothacking | -11 -10 -9 -8 ------------ Run | Yrd Mat Mat Mat Used RIF Installer . | . . . . Robots Hacked . | . . . . Non-combat . | . . . . Combat . | . . . . Robot Hacks Applied . | . . . . Relay Couplers Released . | . . . . Fabnet Peak Effective % . | . . . . Robots Rewired . | . . . . Allies Hacked . | . . . . Hacks Repelled . | . . . . Allies | -11 -10 -9 -8 -------- Run | Yrd Mat Mat Mat Total Allies . | . . . . Largest Group . | . . . . Highest-Rated Group . | . . . . Highest-Rated Ally . | . . . . Total Orders . | . . . . Ally Attacks . | . . . . Total Damage . | . . . . Kills . | . . . . Allies Corrupted . | . . . . Allies Melted . | . . . . Intel | -11 -10 -9 -8 ------- Run | Yrd Mat Mat Mat Robot Analysis Total . | . . . . Derelict Logs Recovered . | . . . . Drone Launches . | . . . . Drone Recoveries . | . . . . Exploration | -11 -10 -9 -8 ------------- Run | Yrd Mat Mat Mat Turns Passed 856 | 112 90 369 285 Spaces Moved 596 | 112 89 238 157 Core 108 | 32 . 72 4 Treads 4 | . . . 4 Legs 213 | . . 64 149 Wheels 161 | 80 69 12 . Hover 37 | . . 37 . Flight 73 | . 20 53 . Fastest Speed 45 | 50 45 45 90 Average Speed 110 | 71 72 121 143 Slowest Speed 300 | 80 80 300 200 Overloaded Moves . | . . . . Propulsion Burnouts . | . . . . Robots Hopped . | . . . . Cave-ins Triggered . | . . . . Exploration Rate (%) 16 | 6 25 18 17 Regions Visited 3 Branch Regions . Pre-discovered Areas . | . . . . Known Exits Taken . | . . . . Unknown Exits Taken 3 | 1 1 1 . Scrap Searched . | . . . . Spaces Dug . | . . . . Terrain Destroyed 59 | . . 59 . Melee . | . . . . Projectile . | . . . . AOE 59 | . . 59 . Terrain Rammed . | . . . . Walls Destroyed . | . . . . Machines Disabled . | . . . . Actions | -11 -10 -9 -8 --------- Run | Yrd Mat Mat Mat Total 734 | 134 105 298 197 Wait 36 | 1 9 26 . Move 593 | 111 88 237 157 Hop . | . . . . Pick Up 29 | 7 1 11 10 Fast Attach 1 | 1 . . . Attach 21 | 4 1 10 6 Detach . | . . . . Swap 5 | 1 . 1 3 Drop 12 | 3 . 2 7 Fire 36 | 6 6 10 14 Melee . | . . . . Ram 1 | . . 1 . Kick . | . . . . Crush . | . . . . Escape Stasis . | . . . . Rewire . | . . . . Trap . | . . . . Miscellaneous . | . . . . Route ------- -11/Scrapyard -10/Materials -9/Materials -8/Materials History --------- Turn | Location | Event 2 | -11/Scrapyard | Met Revision 17 66 | -11/Scrapyard | Discovered new exit (range 8) 113 | -11/Scrapyard | Entered Materials 170 | -10/Materials | Discovered new exit (range 15) 193 | -10/Materials | Core integrity fell below 50% 203 | -10/Materials | Entered another Materials area 203 | -9/Materials | Evolved 2 slots: Propulsion x1, Utility x1 226 | -9/Materials | Lost 4 parts (1p1n2w) 564 | -9/Materials | Discovered new exit (range 4) 572 | -9/Materials | Entered another Materials area 572 | -8/Materials | Evolved 2 slots: Power x2 708 | -8/Materials | Build established: Mutant 845 | -8/Materials | Core integrity fell below 50% 854 | -8/Materials | Core integrity fell below 20% 857 | -8/Materials | Destroyed by G-47 Trooper with Particle Gun Last Messages --------------- type of utility that is destroyed if removed (these are marked with a colon in the parts list, as a reminder). Lgt. Armor Plating destroyed. Particle Gun melted. G-47 Trooper destroyed. Switching to secondary target: G-47 Trooper. Lgt. Treads destroyed. Hvy. Assault Rifle destroyed. Beam Rifle destroyed. Penetrated by Slug. G-47 Trooper destroyed. Penetrated by Slug. K-01 Serf collects debris. VSS Leg destroyed. Penetrated by Slug. Critical hit (Burn: +37). R-06 Scavenger collects Sml. Matter Pod. Penetrated by Slug. [Achievement: First Step to Greatness] Map ----- +----------------------------------------------------+ | ? ?????????????????????????????????????????????? | | ? ?????????????????????????????????????????????? | | ? ?????????????????????????????????????????????? | | ? ?????????????????????????????????????????????? | | ? ?????????????????????????????????????????????? | | ?# #?????????????????????????????????????????????? | | ?# #?????????????????????????????????????????????? | | ?# #?????????????????????????????????????????????? | | ?# #?????????????????????????????????????????????? | | ?# #?????????????????????????????????????????????? | | ##+#?????????????????????????????????????????????? | | #?????????????????????????????????????????????? | | "" #?????????????????????????????????????????????? | | "" ########??????????????????????????????????????? | | "" # #??????????????????????????????????????? | | # """ #??????????????????????????????????????? | | # """ #??????????????????????????????????????? | | # """ #??????????????????????????????????????? | | # #??????? ??????????????????????????????? | | #### #??????" ??????????????????????????????? | | #####+####### """ #???????????????????????????? | | + !#???????????????????????????? | | ######## ########+##?????????????????????????????? | | #??????# #?????# ###########???????????????????? | | ???????# #?????# # x #???????????????????? | | ???????# #?????# # x @a #???????????????????? | | ???????# #?????# + "T" w#???????????????????? | | ???????# #?????# # g g rg%#???????????????????? | | ??????##+####### #########+###?????????????????? | | ??????# """ # ####### #?????????????????? | | ??????# """"" # # ???????????? | | ??????# """"" # T + ???????????? | | ??????# """"" # # #?????????? | | ??????# """ + ####### # #?????????? | | ??????# # #?????#######? #?????????? | | ??????# # #?????????????? #?????????? | | ??????# # #???????????????#####?????????? | | ??????# # #?????????????????????????????? | | ??????########## #?????????????????????????????? | | ???????????????# #?????????????????????????????? | | ???????????????# ?????????????????????????????? | | ???????????????# ##????????????????????????????? | | ???????????????# #?????????????????????????????? | | ???????????????# #?????????????????????????????? | | ??????????????? ?????????????????????????????? | | ??????????????? ?????????????????????????????? | | ??????????????? ?????????????????????????????? | | ??????????????? ?????????????????????????????? | | ??????????????? #????????????????????????????? | | ????????????????#+#??????????????????????????????? | +----------------------------------------------------+ Best States ------------- Heat Dissipation 41 Energy Generation 10 Energy Capacity 325 Matter Stores 300 Matter Capacity 300 Sight Range 16 Terrain Scan Density 10 Armor Coverage 150 Evasion (%) 61 Recoil Reduction 1 Trap Extractor Capacity 4 Item Schematics ----------------- None Robot Schematics ------------------ None Fabricated ------------ Nothing Alien Tech Used ----------------- None Achievements -------------- First Step to Greatness One Hack Too Far Uninvited Guest Universal Adapter Challenges ------------ None Game ------ Seed ImprovedSigixGreatsword Manual? 0 Play Time 00:23:29 Cumulative 0.3 hours Start 2024.03.31 @ 23:15:29 End 2024.04.01 @ 22:02:50 Sessions 7 Manual Loads 0 Difficulty Rogue Special Mode None Game No. 1 Rogue 1 Adventurer 0 Explorer 0 Win Type - Total 0 Types 0/0/0/0/0/0/0/0/0 Lore% 1 Gallery% 2 Achievement% 1 Wizard Run 0 Options --------- Layout 1 ASCII 0 Keyboard 0 Movement Mouse Keybinds 0 Fullscreen 2 Font 24/Smallcaps Map View 50x35 Zoom Use 0% Tactical HUD 0 Map Filters NONE Filters NONE Steam 1 RUN: 3ff7dbe3-5ccb-44a7-aacc-2cfc36ada89f